{"text_format":"1","workbook":"xlsx","n_sheets":2,"sheets":["Side 1","Side 2"],"not_rendered":{"charts":0,"images":1,"macros":1,"external_links":0,"defined_names":0,"comments":0,"pivot_tables":0},"unopened":[],"bounds":{"document_bytes":16777216,"sheet_cells":100000,"rows_first":2000,"rows_last":500,"rows_between":2000,"halvings":0,"cell_chars":16384,"cell_head_chars":4096},"cells_cut":0,"cells_raw":0,"read":"whole","date_system":"1900"}

{"sheet":"Side 1","index":0,"n_rows":69,"n_cols":34,"rows_kept":69,"cut":false,"hidden":false,"merged":[[45,11,45,35],[24,19,25,23],[32,2,32,13],[33,1,33,3],[28,1,29,6],[28,7,29,12],[28,13,29,18],[28,19,29,23],[1,15,2,35],[8,1,8,17],[8,18,8,35],[10,1,10,17],[10,18,10,23],[10,24,10,35],[12,1,12,17],[13,9,14,17],[15,1,15,8],[15,9,15,17],[24,1,25,6],[24,7,25,12],[24,13,25,18],[13,1,14,8],[21,1,23,35],[47,1,47,18],[47,19,47,27],[26,1,27,6],[26,7,27,12],[26,13,27,18],[26,19,27,23],[34,1,34,6],[34,7,35,12],[26,24,27,35],[28,24,29,35],[47,28,47,35],[49,1,49,12],[49,13,49,18],[49,19,49,27],[49,28,49,35],[24,24,25,35],[36,1,37,6],[36,7,37,12],[38,1,39,6],[38,7,39,12],[63,1,64,7],[63,8,64,8],[52,1,54,18],[52,23,54,35],[55,2,55,16],[55,23,55,35],[61,9,61,19],[61,21,61,25],[62,9,65,35]]}
[null,null,null,null,null,null,null,null,null,null,null,null,null,null,null,null,null,null,null,null,null,null,null,null,null,null,null,null,null,null,null,null,null,"Side 1 av 2"]
[]
[]
[]
[]
[null,"Kundeinformasjon",null,null,null,null,null,null,null,null,null,null,null,null,null,"Del 1 : Postens fakturagrunnlag"]
[]
[null,"Kundenummer",null,null,null,null,null,null,null,null,null,null,null,null,null,null,null,null,"Bestillingsreferanse (maks 35 tegn) "]
[]
[null,"Kundenavn",null,null,null,null,null,null,null,null,null,null,null,null,null,null,null,null,"Telefon",null,null,null,null,null,"e-post"]
[]
[null,"Postadresse"]
[]
[null,"Postnummer",null,null,null,null,null,null,null,"Poststed"]
[]
[]
[]
[]
[]
[]
[null,"Spesifiser utsendelsen:"]
[null,"Rabattert pris gis når sendingene er ferdig tilrettelagt med frankering, rekommandert etikett, ført opp i kvitteringsliste og sortert i listens rekkefølge."]
[]
[]
[null,"Antall brev per format",null,null,null,null,null,"Små ",null,null,null,null,null,"Store",null,null,null,null,null," Maxi"]
[]
[null,"  Norge"]
[]
[null,"  Til utlandet"]
[]
[]
[]
[null,null,"Sendingene er ikke tilrettelagt"]
[null,"Kryss av"]
[]
[]
[]
[]
[]
[]
[]
[]
[]
[]
[]
[null,"Underskrifter mv.",null,null,null,null,null,null,null,null,null,"Vilkår for rekommanderte brev og Postens generelle leveringsvilkår gjelder, se bring.no/vilkar"]
[null,"Firmanavn ved innlevering av 3.part (trykkeri/pakningsfirma e.l.)",null,null,null,null,null,null,null,null,null,null,null,null,null,null,null,null,null,"Kontaktperson",null,null,null,null,null,null,null,null,"Telefon"]
[]
[null,"Sted",null,null,null,null,null,null,null,null,null,null,null,"Dato/år",null,null,null,null,null,"Sted",null,null,null,null,null,null,null,null,"Dato/år/klokkeslett"]
[]
[]
[]
[]
[]
[]
[null,null,"Navn/stempel og underskrift",null,null,null,null,null,null,null,null,null,null,null,null,null,null,null,null,null,null,null,null,"Stempel og underskrift Posten "]
[]
[]
[]
[]
[null,"Kommentarer/korrigeringer for Posten"]
[null,"Samlet vekt av innleveringen",null,null,null,null,null,null,null,"Postens merknader ved avvik:",null,null,null,null,null,null,null,null,null,null,null,"Kontroll utført",null,null,null,null,null,"Ordreseddelen er korrigert"]
[]
[null,null,null,null,null,null,null,null,"kg"]
[]
[]
[null,null,null,null,null,null,null,null,null,null,null,null,null,null,null,null,null,null,null,null,"Posten Norge AS, Foretaksregisteret: 984 661 185 MVA"]
[]
[null,"2019 V01"]

{"sheet":"Side 2","index":1,"n_rows":69,"n_cols":34,"rows_kept":69,"cut":false,"hidden":false,"merged":[[33,1,33,3],[26,7,27,12],[26,13,27,18],[24,1,25,6],[28,7,29,12],[32,2,32,13],[26,1,27,6],[28,1,29,6],[24,19,25,23],[26,19,27,23],[28,19,29,23],[34,7,35,12],[28,13,29,18],[26,24,27,35],[28,24,29,35],[63,1,64,7],[63,8,64,8],[55,2,55,16],[38,7,39,12],[38,1,39,6],[62,9,65,25],[61,21,61,25],[49,19,49,27],[52,1,54,18],[45,11,45,35],[36,1,37,6],[36,7,37,12],[10,24,10,35],[47,28,47,35],[47,1,47,18],[47,19,47,27],[34,1,34,6],[15,9,15,16],[24,7,25,12],[24,13,25,18],[61,9,61,19],[52,23,54,35],[13,1,14,8],[24,24,25,35],[21,1,23,35],[15,1,15,8],[55,23,55,35],[49,28,49,35],[49,1,49,12],[49,13,49,18],[1,15,2,35],[13,9,14,17],[5,15,5,30],[8,18,8,35],[10,18,10,23],[8,1,8,17],[10,1,10,17],[12,1,12,17]]}
[null,null,null,null,null,null,null,null,null,null,null,null,null,null,null,null,null,null,null,null,null,null,null,null,null,null,null,null,null,null,null,null,null,"Side 2 av 2"]
[]
[]
[]
[]
[null,"Kundeinformasjon",null,null,null,null,null,null,null,null,null,null,null,null,null,"Del 1 : Postens fakturagrunnlag"]
[]
[null,"Kundenummer",null,null,null,null,null,null,null,null,null,null,null,null,null,null,null,null,"Bestillingsreferanse (maks 35 tegn)"]
[null,{"$f":"'Side 1'!B9:R9","v":0},null,null,null,null,null,null,null,null,null,null,null,null,null,null,null,null,{"$f":"'Side 1'!S9:AJ9","v":0}]
[null,"Kundenavn",null,null,null,null,null,null,null,null,null,null,null,null,null,null,null,null,"Telefon",null,null,null,null,null,"e-post"]
[null,{"$f":"'Side 1'!B11:R11","v":0},null,null,null,null,null,null,null,null,null,null,null,null,null,null,null,null,{"$f":"'Side 1'!S11:X11","v":0},null,null,null,null,null,{"$f":"'Side 1'!Y11:AJ11","v":0}]
[null,"Postadresse"]
[null,{"$f":"'Side 1'!B13:R13","v":0}]
[null,"Postnummer",null,null,null,null,null,null,null,"Poststed"]
[]
[null,{"$f":"'Side 1'!B16:I16","v":0},null,null,null,null,null,null,null,{"$f":"'Side 1'!J16:Q16","v":0}]
[]
[]
[]
[]
[null,"Spesifiser utsendelsen:"]
[null,"Rabattert pris gis når sendingene er ferdig tilrettelagt med frankering, rekommandert etikett, ført opp i kvitteringsliste og sortert i listens rekkefølge."]
[]
[]
[null,"Antall brev \nper format",null,null,null,null,null,"Små",null,null,null,null,null," Store",null,null,null,null,null," Maxi"]
[]
[null,"  Norge",null,null,null,null,null,{"$f":"'Side 1'!H27:M28","v":0},null,null,null,null,null,{"$f":"'Side 1'!N27:S28","v":0},null,null,null,null,null,{"$f":"'Side 1'!T27:X28","v":0},null,null,null,null,{"$f":"'Side 1'!Y27:AC28","v":0}]
[]
[null,"  Til utlandet",null,null,null,null,null,{"$f":"'Side 1'!H29:M30","v":0},null,null,null,null,null,{"$f":"'Side 1'!N29:S30","v":0},null,null,null,null,null,{"$f":"'Side 1'!T29:X30","v":0}]
[]
[]
[]
[null,{"$f":"'Side 1'!B33","v":0},"Sendingene er ikke tilrettelagt"]
[null,"Kryss av"]
[]
[]
[]
[]
[]
[]
[]
[]
[]
[]
[]
[null,"Underskrifter mv.",null,null,null,null,null,null,null,null,null,"Vilkår for rekommanderte brev og Postens generelle leveringsvilkår gjelder, se bring.no/vilkar"]
[null,"Firmanavn ved innlevering av 3.part (trykkeri/pakningsfirma e.l.)",null,null,null,null,null,null,null,null,null,null,null,null,null,null,null,null,null,"Kontaktperson",null,null,null,null,null,null,null,null,"Telefon"]
[null,{"$f":"'Side 1'!B48:S48","v":0},null,null,null,null,null,null,null,null,null,null,null,null,null,null,null,null,null,{"$f":"'Side 1'!T48:AB48","v":0},null,null,null,null,null,null,null,null,{"$f":"'Side 1'!AC48:AJ48","v":0}]
[null,"Sted",null,null,null,null,null,null,null,null,null,null,null,"Dato/år",null,null,null,null,null,"Sted",null,null,null,null,null,null,null,null,"Dato/år/klokkeslett"]
[null,{"$f":"'Side 1'!B50:M50","v":0},null,null,null,null,null,null,null,null,null,null,null,{"$f":"'Side 1'!N50:S50","v":0}]
[]
[]
[null,{"$f":"'Side 1'!B53:S55","v":0},null,null,null,null,null,null,null,null,null,null,null,null,null,null,null,null,null,null,null,null,null,{"$f":"'Side 1'!X53:AJ55","v":0}]
[]
[]
[null,null,"Navn/stempel og underskrift",null,null,null,null,null,null,null,null,null,null,null,null,null,null,null,null,null,null,null,null,"Stempel og underskrift Posten "]
[]
[]
[]
[]
[null,"Kommentarer/korrigeringer for Posten"]
[null,"Samlet vekt av innleveringen",null,null,null,null,null,null,null,"Postens merknader ved avvik:",null,null,null,null,null,null,null,null,null,null,{"$f":"'Side 1'!U62","v":0},"Kontroll utført",null,null,null,null,{"$f":"'Side 1'!AA62","v":0},"Ordreseddelen er korrigert"]
[]
[null,{"$f":"'Side 1'!B64:H65","v":0},null,null,null,null,null,null,"kg"]
[]
[]
[null,null,null,null,null,null,null,null,null,null,null,null,null,null,null,null,null,null,null,null,"Posten Norge AS, Foretaksregisteret: 984 661 185 MVA"]
[]
[null,"2019 V01"]